Workbook

Sheet RIB Performance Test Report
A1: BII: RIB Performance Test Report
A2: Test Date: June 25, 2013
A3: Environment: Staging Server
B4: Number of User
B5: 1 | L5: 20 | V5: 40 | AF5: 60 | AP5: 90
B6: # Samples | C6: Average (ms) | D6: Min (ms) | E6: Max (ms) | F6: Error % | G6: Throughput | H6: KB/sec | I6: Average Bytes | J6: Average IB minus ESB Time | K6: Average ESB Response Time (ms) | L6: # Samples | M6: Average (ms) | N6: Min (ms) | O6: Max (ms) | P6: Error % | Q6: Throughput | R6: KB/sec | S6: Average Bytes | T6: Average IB minus ESB Time | U6: Average ESB Response Time (ms) | V6: # Samples | W6: Average (ms) | X6: Min (ms) | Y6: Max (ms) | Z6: Error % | AA6: Throughput | AB6: KB/sec | AC6: Average Bytes | AD6: Average IB minus ESB Time | AE6: Average ESB Response Time (ms) | AF6: # Samples | AG6: Average (ms) | AH6: Min (ms) | AI6: Max (ms) | AJ6: Error % | AK6: Throughput | AL6: KB/sec | AM6: Average Bytes | AN6: Average IB minus ESB Time | AO6: Average ESB Response Time (ms) | AP6: # Samples | AQ6: Average (ms) | AR6: Min (ms) | AS6: Max (ms) | AT6: Error % | AU6: Throughput | AV6: KB/sec | AW6: Average Bytes | AX6: Average IB minus ESB Time | AY6: ESB Response Time (ms)
A7: Secure Site Login Page (Login.do) | B7: 1 | C7: 15 | D7: 15 | E7: 15 | F7: 0 | G7: 66.66666667 | H7: 47.59114583 | I7: 731 | L7: 20 | M7: 7 | N7: 3 | O7: 26 | P7: 0 | Q7: 2.103270586 | R7: 1.501455858 | S7: 731 | V7: 40 | W7: 12 | X7: 2 | Y7: 29 | Z7: 0 | AA7: 4.096681688 | AB7: 2.924486635 | AC7: 731 | AF7: 60 | AG7: 8 | AH7: 2 | AI7: 41 | AJ7: 0 | AK7: 6.081491993 | AL7: 4.341377585 | AM7: 731 | AP7: 90 | AQ7: 239 | AR7: 2 | AS7: 20704 | AT7: 0 | AU7: 2.939735424 | AV7: 2.098580659 | AW7: 731
A8: ibLoginAccess | B8: 1 | C8: 29 | D8: 29 | E8: 29 | F8: 0 | G8: 34.48275862 | H8: 405.7112069 | I8: 12048 | L8: 20 | M8: 28 | N8: 27 | O8: 38 | P8: 0 | Q8: 2.101944298 | R8: 24.73068839 | S8: 12048 | V8: 40 | W8: 29 | X8: 26 | Y8: 37 | Z8: 0 | AA8: 4.08496732 | AB8: 48.06219363 | AC8: 12048 | AF8: 60 | AG8: 29 | AH8: 25 | AI8: 44 | AJ8: 0 | AK8: 6.063668519 | AL8: 71.34284992 | AM8: 12048 | AP8: 90 | AQ8: 261 | AR8: 25 | AS8: 20778 | AT8: 0 | AU8: 2.937145095 | AV8: 34.55734776 | AW8: 12048
A9: ibLoginPsssword | B9: 1 | C9: 22 | D9: 22 | E9: 22 | F9: 0 | G9: 45.45454545 | H9: 575.9943182 | I9: 12976 | L9: 20 | M9: 17 | N9: 15 | O9: 26 | P9: 0 | Q9: 2.102828304 | R9: 26.64677742 | S9: 12976 | V9: 40 | W9: 16 | X9: 15 | Y9: 26 | Z9: 0 | AA9: 4.08872534 | AB9: 51.81181642 | AC9: 12976 | AF9: 60 | AG9: 16 | AH9: 14 | AI9: 24 | AJ9: 0 | AK9: 6.068574896 | AL9: 76.90022251 | AM9: 12976 | AP9: 90 | AQ9: 250 | AR9: 14 | AS9: 20790 | AT9: 0 | AU9: 2.919992213 | AV9: 37.00177633 | AW9: 12976
A10: ibLoginSecurityQuestion | B10: 1 | C10: 127 | D10: 127 | E10: 127 | F10: 0 | G10: 7.874015748 | H10: 141.5092889 | I10: 18403 | L10: 20 | M10: 118 | N10: 104 | O10: 176 | P10: 0 | Q10: 2.082465639 | R10: 37.42540543 | S10: 18403 | V10: 40 | W10: 113 | X10: 101 | Y10: 173 | Z10: 0 | AA10: 4.037549208 | AB10: 72.56154108 | AC10: 18403 | AF10: 60 | AG10: 115 | AH10: 103 | AI10: 213 | AJ10: 0 | AK10: 6.012626516 | AL10: 108.0569978 | AM10: 18403 | AP10: 90 | AQ10: 133 | AR10: 100 | AS10: 1894 | AT10: 0 | AU10: 2.752125252 | AV10: 49.46031349 | AW10: 18403
A11: Acount Summary | B11: 1 | C11: 1147 | D11: 1147 | E11: 1147 | F11: 0 | G11: 0.8718395815 | H11: 13.55948943 | I11: 15926 | J11: =C11-K11 -> 44 | K11: =1103/B11 -> 1103 | L11: 20 | M11: 1842 | N11: 25 | O11: 6056 | P11: 0 | Q11: 1.386962552 | R11: 18.75467287 | S11: 13846.65 | T11: =M11-U11 -> 80.3 | U11: =35234/L11 -> 1761.7 | V11: 40 | W11: 13353 | X11: 25 | Y11: 25639 | Z11: 0 | AA11: 1.164890209 | AB11: 16.07707751 | AC11: 14132.6 | AD11: =W11-AE11 -> 109.625 | AE11: =529735/V11 -> 13243.375 | AF11: 60 | AG11: 30003 | AH11: 25 | AI11: 49620 | AJ11: 0 | AK11: 1.018917909 | AL11: 14.32060597 | AM11: 14392.03333 | AN11: =AG11-AO11 -> 207.1333333 | AO11: =1787752/AF11 -> 29795.86667 | AP11: 90 | AQ11: 35008 | AR11: 24 | AS11: 73288 | AT11: 0 | AU11: 1.062912617 | AV11: 14.49782361 | AW11: 13967.06667 | AX11: =AQ11-AY11 -> 557.1888889 | AY11: =3100573/AP11 -> 34450.81111
A12: Logout | B12: 1 | C12: 7 | D12: 7 | E12: 7 | F12: 0 | G12: 142.8571429 | H12: 1131.138393 | I12: 8108 | L12: 20 | M12: 8 | N12: 7 | O12: 10 | P12: 0 | Q12: 1.388406803 | R12: 10.99336168 | S12: 8108 | V12: 40 | W12: 10 | X12: 7 | Y12: 109 | Z12: 0 | AA12: 1.165365342 | AB12: 9.227326361 | AC12: 8108 | AF12: 60 | AG12: 7 | AH12: 6 | AI12: 15 | AJ12: 0 | AK12: 1.022425193 | AL12: 8.095530724 | AM12: 8108 | AP12: 90 | AQ12: 74 | AR12: 6 | AS12: 5813 | AT12: 0 | AU12: 1.063050719 | AV12: 8.417202375 | AW12: 8108
A13: Total / Average | B13: =SUM(B7:B12) -> 6 | C13: 356 | D13: 20 | E13: 1333 | F13: =AVERAGE(F7:F12) -> 0 | G13: 2.8/sec | H13: 28.63 | I13: 10503.7 | L13: =SUM(L7:L12) -> 120 | M13: 947 | N13: 17 | O13: 5397 | P13: =AVERAGE(P7:P12) -> 0 | Q13: 7.7/sec | R13: 79.16 | S13: 10542 | V13: =SUM(V7:V12) -> 240 | W13: 5364 | X13: 3 | Y13: 29494 | Z13: =AVERAGE(Z7:Z12) -> 0 | AA13: 7.8/sec | AB13: 81.46 | AC13: 10661 | AF13: =SUM(AF7:AF12) -> 360 | AG13: 5709 | AH13: 14 | AI13: 28668 | AJ13: 0 | AK13: 9.1/sec | AL13: 93.9 | AM13: 10567.5 | AP13: =SUM(AP7:AP12) -> 540 | AQ13: 5994 | AR13: 15 | AS13: 30688 | AT13: 0 | AU13: 9.8/sec | AV13: 93.9 | AW13: 12587.5
A14: Memory Usage (MB)
A15: Initial Memory In Used (MB)
A16: Actual Memory Usage (MB)
A17: CPU Usage %
A18: Initial CPU In Used %
A19: Actual CPU Usage %
A23: RIB Average Reponse Time (seconds)
B24: Number Of User
A25: Types | B25: =B5 -> 1 | C25: =L5 -> 20 | D25: =V5 -> 40 | E25: =AF5 -> 60 | F25: =AP5 -> 90
A26: Secure Site Login Page | B26: =C7/1000 -> 0.015 | C26: =M7/1000 -> 0.007 | D26: =W7/1000 -> 0.012 | E26: =AG7/1000 -> 0.008 | F26: =AQ7/1000 -> 0.239
A27: ibLoginAccess | B27: =C8/1000 -> 0.029 | C27: =M8/1000 -> 0.028 | D27: =W8/1000 -> 0.029 | E27: =AG8/1000 -> 0.029 | F27: 0.261
A28: ibLoginPsssword | B28: =C9/1000 -> 0.022 | C28: 0.017 | D28: 0.016 | E28: 0.016 | F28: 0.25
A29: ibLoginSecurityQuestion | B29: 0.127 | C29: 0.118 | D29: 0.113 | E29: 0.115 | F29: 0.133
A30: Acount Summary | B30: 1.147 | C30: 1.842 | D30: 13.353 | E30: 30.003 | F30: 35.008
A31: Logout | B31: =C12/1000 -> 0.007 | C31: 0.008 | D31: 0.01 | E31: 0.007 | F31: 0.074
A34: ESB Average Reponse Time (seconds)
B35: Number Of User
A36: Types | B36: =B5 -> 1 | C36: =L5 -> 20 | D36: =V5 -> 40 | E36: =AF5 -> 60 | F36: =AP5 -> 90
A37: Secure Site Login Page | B37: =K7/1000 -> 0 | C37: =U7/1000 -> 0 | D37: =AE7/1000 -> 0 | E37: =AO7/1000 -> 0 | F37: =AY7/1000 -> 0
A38: ibLoginAccess | B38: =K8/1000 -> 0 | C38: =U8/1000 -> 0 | D38: =AE8/1000 -> 0 | E38: =AO8/1000 -> 0 | F38: 0
A39: ibLoginPsssword | B39: 0 | C39: 0 | D39: 0 | E39: 0 | F39: 0
A40: ibLoginSecurityQuestion | B40: 0 | C40: 0 | D40: 0 | E40: 0 | F40: 0
A41: Acount Summary | B41: 1.103 | C41: 1.7617 | D41: 13.243375 | E41: 29.79586667 | F41: 34.45081111
A42: Logout | B42: 0 | C42: 0 | D42: 0 | E42: 0 | F42: 0
A45: Total Average Reponse Time (seconds)
B46: Number Of User
B47: =B5 -> 1 | C47: =L5 -> 20 | D47: =V5 -> 40 | E47: =AF5 -> 60 | F47: =AP5 -> 90
A48: Total Average | B48: =C13/1000 -> 0.356 | C48: =M13/1000 -> 0.947 | D48: =W13/1000 -> 5.364 | E48: =AG13/1000 -> 5.709 | F48: =AQ13/1000 -> 5.994
